fUST/lending_fUST_20250515
["ID","MTS","AMOUNT","RATE_DAILY","PERIOD"]
[361086745,1747245032730,-681.46390709,0.0002459,11]
[361086746,1747245032740,-5940.07048213,0.000246,2]
[361086747,1747245032749,-300.0,0.00024658,2]
[361086748,1747245032759,-260.74285793,0.00024658,2]
[361086749,1747245032769,-514.23998174,0.0002466,2]
[361086750,1747245032781,-5940.07048213,0.00024672,2]
[361086751,1747245032791,-500.0,0.000247,2]
[361086752,1747245032801,-500.0,0.000247,2]
[361086753,1747245032811,-500.0,0.000247,2]
[361086754,1747245032822,-500.0,0.000247,2]
[361086755,1747245032831,-300.58636463,0.00024715,2]
[361086756,1747245032842,-681.46390709,0.00024728,11]
[361086757,1747245032853,-997.9747837,0.00024732,2]
[361086758,1747245032862,-160.0,0.00024732,2]
[361086759,1747245032872,-422.27619506,0.00024732,2]
[361086760,1747245032881,-226.303,0.00024739,8]
[361086761,1747245032891,-185.25775236,0.00024739,8]
[361086762,1747245032900,-5940.07048213,0.00024744,2]
[361086763,1747245032909,-400.0,0.00024808,2]
[361086764,1747245032918,-400.0,0.00024808,2]
[361086765,1747245032929,-400.0,0.00024808,2]
[361086766,1747245032938,-432.5605052,0.00024809,2]
[361086767,1747245032947,-400.0,0.00024809,2]
[361086768,1747245032957,-5940.07048213,0.00024815,2]
[361086769,1747245032966,-1041.2956204,0.00024855,2]
[361086770,1747245032976,-227.41668101,0.00024855,2]
[361086771,1747245032985,-681.46390709,0.00024866,12]
[361086772,1747245032995,-600.0,0.00024873,2]
[361086773,1747245033005,-5940.07048213,0.00024887,2]
[361086774,1747245033014,-400.0,0.00024899,2]
[361086775,1747245033024,-400.0,0.00024899,2]
[361086776,1747245033033,-400.0,0.00024899,2]
[361086777,1747245033044,-400.0,0.00024899,2]
[361086778,1747245033054,-400.0,0.00024899,2]
[361086779,1747245033064,-400.0,0.00024899,2]
[361086780,1747245033078,-400.0,0.00024899,2]
[361086781,1747245033088,-342.82009552,0.00024899,2]
[361086782,1747245033098,-322.50026358,0.00024899,2]
[361086783,1747245033108,-400.0,0.00024899,2]
[361086784,1747245033118,-400.0,0.00024899,2]
[361086785,1747245033128,-508.14,0.00024899,2]
[361086786,1747245033137,-400.0,0.00024899,2]
[361086787,1747245033147,-400.0,0.00024899,2]
[361086788,1747245033157,-400.0,0.00024899,2]
[361086789,1747245033166,-400.0,0.00024899,2]
[361086790,1747245033176,-240.43156038,0.00024899,2]
[361086791,1747245033187,-400.0,0.00024899,2]
[361086792,1747245033196,-400.0,0.00024899,2]
[361086793,1747245033206,-718.18232524,0.000249,3]
[361086794,1747245033217,-286557.680411,0.000249,2]
[361086795,1747245033226,-183320.15156575,0.00024987,2]
[361086796,1747245033319,-58331.80650621,0.00024987,2]
[361086797,1747245033332,-239830.42029179,0.00024987,2]
[361086822,1747245037798,-983.5,0.00020906,15]
[361086824,1747245037808,-1560.44246684,0.00024987,2]
[361086843,1747245037976,-9176.79676762,0.00024987,2]
[361086845,1747245037987,-1305.80158036,0.00024987,2]
[361087009,1747245042927,-400.0,0.00024899,2]
[361087011,1747245042937,-316.80374,0.00024987,2]
[361087022,1747245043034,-34367.41556439,0.00024987,2]
[361087025,1747245043044,-40100.59690858,0.00024997,2]
[361087026,1747245043053,-400.0,0.00024997,2]
[361087029,1747245043063,-151.11532916,0.00024997,2]
[361087031,1747245043072,-400.0,0.00024997,2]
[361087033,1747245043082,-400.0,0.00024997,2]
[361087034,1747245043091,-400.0,0.00024997,2]
[361087036,1747245043100,-400.0,0.00024997,2]
[361087039,1747245043109,-400.0,0.00024997,2]
[361087041,1747245043119,-400.0,0.00024997,2]
[361087043,1747245043130,-400.0,0.00024997,2]
[361087045,1747245043139,-400.0,0.00024997,2]
[361087047,1747245043148,-400.0,0.00024997,2]
[361087049,1747245043158,-400.0,0.00024997,2]
[361087051,1747245043167,-400.0,0.00024997,2]
[361087053,1747245043176,-400.0,0.00024997,2]
[361087055,1747245043187,-400.0,0.00024997,2]
[361087057,1747245043196,-211.67456323,0.00024997,2]
[361087059,1747245043205,-400.0,0.00024997,2]
[361087061,1747245043215,-156.54557135,0.00024997,2]
[361087063,1747245043224,-336.6132418,0.00024997,2]
[361087065,1747245043234,-681.46390709,0.00025003,12]
[361087067,1747245043243,-500.0,0.00025073,2]
[361087069,1747245043252,-2067.29,0.00025077,3]
[361087071,1747245043262,-1033.65,0.00025077,3]
[361087073,1747245043271,-516.82,0.00025077,3]
[361087075,1747245043280,-258.41,0.00025077,3]
[361087077,1747245043289,-775.28,0.00025077,3]
[361087079,1747245043298,-286557.680411,0.00025077,2]
[361087081,1747245043307,-400.0,0.00025082,2]
[361087083,1747245043316,-400.0,0.00025082,2]
[361087085,1747245043327,-183.87,0.00025082,2]
[361087087,1747245043338,-400.0,0.00025083,2]
[361087089,1747245043347,-16538.33,0.00025087,3]
[361087091,1747245043357,-8269.16,0.00025087,3]
[361087093,1747245043366,-4134.58,0.00025087,3]
[361087095,1747245043376,-422.27619506,0.00025087,3]
[361087097,1747245043385,-997.9747837,0.00025087,3]
[361087099,1747245043395,-160.0,0.00025087,3]
[361087101,1747245043406,-2857.47,0.000251,7]
[361087103,1747245043415,-681.46390709,0.00025141,12]
[361087105,1747245043424,-400.0,0.00025173,2]
[361087107,1747245043433,-400.0,0.00025173,2]
[361087109,1747245043443,-151.0,0.00025251,7]
[361087111,1747245043451,-228.61,0.00025271,2]
[361087113,1747245043460,-400.0,0.00025271,2]
[361087115,1747245043469,-503.44736264,0.00025273,2]
[361087117,1747245043478,-501.70788395,0.00025273,2]
[361087119,1747245043488,-500.78546831,0.00025273,2]
[361087121,1747245043497,-310.08691503,0.00025273,2]
[361087123,1747245043506,-500.0,0.00025273,2]
[361087125,1747245043515,-501.28201925,0.00025273,2]
[361087127,1747245043524,-500.0,0.00025273,2]
[361087129,1747245043533,-681.46390709,0.00025279,12]
[361087131,1747245043542,-400.0,0.00025356,2]
[361087133,1747245043551,-162.11,0.00025356,2]
[361087135,1747245043560,-400.0,0.00025357,2]
[361087137,1747245043569,-151.0,0.000254,15]
[361087139,1747245043578,-681.46390709,0.00025417,13]
[361087140,1747245043587,-1200.0,0.00025421,2]
[361087141,1747245043597,-400.0,0.00025447,2]
[361087142,1747245043606,-400.0,0.00025447,2]
[361087143,1747245043615,-151.0,0.000255,17]
[361087145,1747245043624,-400.0,0.00025545,2]
[361087147,1747245043633,-681.46390709,0.00025555,13]
[361087149,1747245043643,-151.0,0.000256,19]
[361087151,1747245043652,-400.0,0.0002563,2]
[361087153,1747245043662,-400.0,0.00025631,2]
[361087155,1747245043671,-681.46390709,0.00025693,13]
[361087157,1747245043680,-383.85,0.00025721,2]
[361087159,1747245043689,-400.0,0.00025721,2]
[361087162,1747245043699,-151.0,0.000258,18]
[361087164,1747245043708,-400.0,0.00025819,2]
[361087166,1747245043717,-681.46390709,0.00025831,13]
[361087167,1747245043727,-151.0,0.000259,11]
[361087169,1747245043736,-400.0,0.00025904,2]
[361087171,1747245043745,-400.0,0.00025905,2]
[361087173,1747245043753,-1800.0,0.00025968,2]
[361087175,1747245043762,-681.46390709,0.00025969,14]
[361087177,1747245043772,-400.0,0.00025995,2]
[361087179,1747245043781,-2000.0,0.00026,2]
[361087181,1747245043790,-176.363128,0.00026,10]
[361087183,1747245043799,-151.784606,0.00026,10]
[361087185,1747245043810,-1925.0917782,0.00026033,4]
[361087187,1747245043819,-400.0,0.00026093,2]
[361087189,1747245043828,-151.0,0.000261,16]
[361087191,1747245043837,-681.46390709,0.00026107,14]
[361087193,1747245043846,-400.0,0.00026178,2]
[361087195,1747245043855,-400.0,0.00026179,2]
[361087197,1747245043864,-151.0,0.000262,13]
[361087199,1747245043874,-2857.47,0.000262,7]
[361087201,1747245043883,-681.46390709,0.00026245,14]
[361087203,1747245043892,-652.5901468,0.00026254,2]
[361087205,1747245043901,-400.0,0.00026269,2]
[361087207,1747245043910,-151.0,0.000263,10]
[361087209,1747245043919,-652.59014681,0.00026341,2]
[361087211,1747245043928,-233.2,0.00026367,2]
[361087213,1747245043937,-681.46390709,0.00026383,15]
[361087216,1747245043950,-4134.58,0.00026447,3]
[361087218,1747245043959,-2067.3,0.00026447,3]
[361087219,1747245043968,-1033.64,0.00026447,3]
[361087220,1747245043977,-516.82,0.00026447,3]
[361087221,1747245043986,-400.0,0.00026452,2]
[361087222,1747245043995,-184.66,0.00026453,2]
[361087223,1747245044005,-33076.66,0.00026457,3]
[361087224,1747245044014,-5914.43581512,0.00026457,3]
[361087245,1747245046086,-3173.313704,0.00026457,3]
[361087246,1747245046176,-7450.57048088,0.00026457,3]
[361087247,1747245046185,-2652.0427071,0.00026457,3]
[361088560,1747246009748,223.148147,0.00013699,2]
[361088627,1747246106227,1789.812444,0.00027397,120]
[361088695,1747246232088,-150.0,0.000189,2]
[361088697,1747246232098,-223.148147,0.00020187,2]
[361088699,1747246232107,-150.0,0.00021918,2]
[361088701,1747246232116,-421.851853,0.00022487,2]
[361088704,1747246232128,-576.1229307,0.00022487,2]
[361088706,1747246232137,-160.0,0.00022487,2]
[361088708,1747246232147,-422.27619506,0.00022487,2]
[361088710,1747246232156,-400.0,0.00022663,2]
[361088712,1747246232166,-499.183922,0.00022937,2]
[361088714,1747246232175,-400.0,0.00023238,2]
[361088716,1747246232184,-400.0,0.00023512,2]
[361088717,1747246232193,-207.57,0.00023786,2]
[361088719,1747246232203,-314.75298892,0.00024386,2]
[361088721,1747246232212,-400.0,0.0002453,2]
[361088723,1747246232222,-1200.0,0.00024544,2]
[361088726,1747246232232,-231.66934936,0.00024545,2]
[361088729,1747246232241,-263.0086757,0.00024567,2]
[361088732,1747246232251,-255.0,0.00024657,2]
[361088734,1747246232260,-300.0,0.00024658,2]
[361088736,1747246232269,-154.24763767,0.00024804,2]
[361088739,1747246232282,-245.75236233,0.00024804,2]
[361088741,1747246232291,-249.87009945,0.000249,12]
[361088743,1747246232300,-249.87009926,0.00025003,12]
[361088744,1747246232309,-400.0,0.00025078,2]
[361088746,1747246232319,-249.87009926,0.00025107,12]
[361088748,1747246232328,-258.0,0.00025205,3]
[361088750,1747246232337,-249.87009926,0.0002521,12]
[361088752,1747246232347,-249.87009926,0.00025314,12]
[361088754,1747246232356,-400.0,0.00025352,2]
[361088756,1747246232365,-249.87009926,0.00025417,13]
[361088758,1747246232375,-151.0,0.0002542,2]
[361088760,1747246232384,-426.11032593,0.00025445,2]
[361088762,1747246232393,-39.59497075,0.00025521,13]
[361089320,1747246240346,-500.0,0.00024804,2]
[361089321,1747246240357,-500.0,0.00024804,2]
[361089322,1747246240367,-184.1923456,0.00024804,2]
[361089493,1747247054971,216.327553,0.00013699,2]
[361089494,1747247203899,1342.359333,0.00027397,120]
[361089527,1747247432239,-150.0,0.00016438,3]
[361089530,1747247432250,-216.327553,0.00020187,2]
[361089532,1747247432260,-144.572447,0.00021918,2]
[361089536,1747247432295,-5.427553,0.00021918,2]
[361089562,1747247432305,-300.0,0.00023512,2]
[361089566,1747247432544,-300.0,0.00023513,2]
[361089568,1747247432555,-300.0,0.00023513,2]
[361089570,1747247432565,-300.0,0.00023513,2]
[361089572,1747247432574,-1200.0,0.00023513,2]
[361089574,1747247432583,-9686.90522894,0.00023514,3]
[361089576,1747247432593,-23785.48729056,0.00023514,2]
[361089578,1747247432602,-936.18,0.00023514,3]
[361089580,1747247432611,-468.09,0.00023514,3]
[361089581,1747247432620,-234.05,0.00023514,3]
[361089583,1747247432630,-702.15,0.00023514,3]
[361089585,1747247432639,-300.0,0.00023518,2]
[361089587,1747247432649,-500.0,0.00023518,2]
[361089589,1747247432658,-210.57503672,0.00023518,2]
[361089592,1747247432667,-16233.40622853,0.00023519,2]
[361090139,1747247438286,-500.0,0.00023513,2]
[361090141,1747247438296,-499.5061707,0.00023513,2]
[361090143,1747247438305,-500.0,0.00023513,2]
[361090144,1747247438316,-500.0,0.00023513,2]
[361090146,1747247438327,-346.71026948,0.00023513,2]
[361090149,1747247438340,-153.28973052,0.00023513,2]
[361090151,1747247438350,-500.0,0.00023513,2]
[361090153,1747247438359,-20.03858639,0.00023513,2]
[361090374,1747247440513,-356.49071364,0.00023513,2]
[361090376,1747247440523,-500.0,0.00023513,2]
[361090378,1747247440533,-500.0,0.00023513,2]
[361090380,1747247440543,-500.0,0.00023513,2]
[361090382,1747247440553,-500.0,0.00023513,2]
[361090384,1747247440562,-398.34738315,0.00023513,2]
[361090386,1747247440571,-500.0,0.00023513,2]
[361090388,1747247440580,-273.16190321,0.00023513,2]
[361090445,1747247443597,-226.83809679,0.00023513,2]
[361090447,1747247443608,-500.0,0.00023513,2]
[361090448,1747247443618,-500.0,0.00023513,2]
[361090450,1747247443628,-500.0,0.00023513,2]
[361090452,1747247443638,-500.0,0.00023513,2]
[361090453,1747247443647,-500.0,0.00023513,2]
[361090454,1747247443657,-500.0,0.00023513,2]
[361090455,1747247443666,-625.6970226,0.00023513,2]
[361090456,1747247443676,-500.0,0.00023513,2]
[361090457,1747247443685,-184.92972571,0.00023513,2]
[361090458,1747247443695,-500.0,0.00023513,2]
[361090459,1747247443705,-416.51780037,0.00023513,2]
[361090460,1747247443715,-500.0,0.00023513,2]
[361090461,1747247443724,-500.0,0.00023513,2]
[361090462,1747247443734,-500.0,0.00023513,2]
[361090463,1747247443744,-500.0,0.00023513,2]
[361090464,1747247443753,-500.0,0.00023513,2]
[361090465,1747247443763,-500.0,0.00023513,2]
[361090466,1747247443772,-500.0,0.00023513,2]
[361090467,1747247443782,-213.46781115,0.00023513,2]
[361090468,1747247443792,-500.0,0.00023513,2]
[361090469,1747247443802,-500.0,0.00023513,2]
[361090470,1747247443811,-500.0,0.00023518,2]
[361090471,1747247443821,-500.0,0.00023518,2]
[361090472,1747247443831,-500.0,0.00023518,2]
[361090473,1747247443840,-500.0,0.00023518,2]
[361090474,1747247443850,-500.0,0.00023518,2]
[361090475,1747247443859,-301.90552239,0.00023518,2]
[361090476,1747247443869,-209.64622906,0.00023518,2]
[361090477,1747247443879,-33706.40582299,0.00023519,2]
[361090478,1747247443919,-2717.27982574,0.00023519,2]
[361090479,1747247443931,-972.58120728,0.00023519,2]
[361090492,1747247446365,-1164.34435882,0.00023519,2]
[361090495,1747248403148,1006.769499,0.00027397,120]
[361090496,1747248483604,209.869981,0.00013699,2]
[361090557,1747248632469,-6473.70097151,0.00016338,2]
[361090559,1747248632478,-165.0,0.00016438,3]
[361090561,1747248632489,-205.42370397,0.000169,2]
[361090563,1747248632498,-205.42370384,0.00017293,2]
[361090565,1747248632507,-205.42370384,0.00017686,2]
[361090567,1747248632516,-205.42370384,0.00018079,2]
[361090569,1747248632525,-205.42370384,0.00018471,2]
[361090571,1747248632534,-205.42370384,0.00018864,2]
[361090573,1747248632543,-205.42370384,0.00019257,2]
[361090575,1747248632552,-205.42370384,0.0001965,2]
[361090577,1747248632561,-300.0,0.00019997,2]
[361090579,1747248632569,-300.0,0.00019997,2]
[361090580,1747248632578,-28697.67291766,0.00019998,2]
[361090583,1747248632587,-488.34933943,0.00019998,2]
[361090586,1747248632596,-400.0,0.00019998,2]
[361090590,1747248632606,-7015.55,0.0002,2]
[361090594,1747248632615,-504.93973424,0.00020014,2]
[361090597,1747248632624,-463.5854835,0.00020014,2]
[361090599,1747248632633,-205.42370384,0.00020043,2]
[361090601,1747248632642,-209.869981,0.00020187,2]
[361090603,1747248632651,-400.0,0.00020272,2]
[361090604,1747248632660,-205.42370384,0.00020436,3]
[361090606,1747248632669,-400.0,0.00020546,2]
[361090608,1747248632679,-400.0,0.0002082,2]
[361090611,1747248632689,-205.42370384,0.00020829,4]
[361090613,1747248632701,-400.0,0.00021094,2]
[361090615,1747248632711,-205.42370384,0.00021221,4]
[361090617,1747248632720,-500.0,0.00021368,2]
[361090619,1747248632729,-205.42370384,0.00021614,5]
[361090621,1747248632740,-150.0,0.00021918,2]
[361090623,1747248632749,-205.42370384,0.00022007,6]
[361090625,1747248632758,-205.42370384,0.000224,7]
[361090627,1747248632767,-314.30604044,0.00022475,2]
[361090629,1747248632777,-3393.5498378,0.00022631,2]
[361090631,1747248632788,-214.9809894,0.00022716,2]
[361090632,1747248632797,-205.42370384,0.00022793,7]
[361090633,1747248632807,-205.42370384,0.00023186,8]
[361090634,1747248632816,-238.0850385,0.00023397,2]
[361090635,1747248632825,-296.3245472,0.00023397,2]
[361090636,1747248632834,-175.7570261,0.00023397,2]
[361090637,1747248632843,-175.7570261,0.00023397,2]
[361090638,1747248632852,-175.7570261,0.00023397,2]
[361090639,1747248632862,-497.4025257,0.00023518,2]
[361090640,1747248632871,-500.0,0.00023518,2]
[361090641,1747248632881,-500.0,0.00023518,2]
[361090642,1747248632890,-44.48389059,0.00023518,2]
[361090643,1747248632903,-576.84997509,0.00023518,2]
[361090644,1747248632913,-196.75236034,0.00023518,2]
[361090645,1747248632922,-400.0,0.00023519,2]
[361090646,1747248632931,-400.0,0.00023519,2]
[361090647,1747248632941,-500.0,0.0002352,2]
[361090648,1747248632950,-400.0,0.0002352,2]
[361090649,1747248632960,-181.043,0.00023524,4]
[361090650,1747248632969,-459.12,0.00023524,2]
[361090651,1747248632979,-24900.0,0.00023525,2]
[361090652,1747248632989,-205.42370384,0.00023579,9]
[361090653,1747248632999,-150.0,0.00023596,2]
[361090654,1747248633009,-2000.23,0.000236,7]
[361090655,1747248633018,-400.0,0.00023793,2]
[361090657,1747248633028,-400.0,0.00023793,2]
[361090659,1747248633037,-400.0,0.00023794,2]
[361090661,1747248633046,-459.12,0.00023798,2]
[361090663,1747248633055,-205.42370384,0.00023971,10]
[361090665,1747248633065,-5000.00000001,0.00024,2]
[361090667,1747248633074,-3304.91893546,0.00024,2]
[361090669,1747248633084,-400.0,0.00024067,2]
[361090671,1747248633093,-400.0,0.00024067,2]
[361090673,1747248633103,-400.0,0.00024068,2]
[361090675,1747248633112,-459.12,0.00024072,2]
[361090677,1747248633122,-997.9747837,0.00024296,2]
[361090679,1747248633131,-160.0,0.00024296,2]
[361090681,1747248633140,-422.27619506,0.00024296,2]
[361090683,1747248633150,-400.0,0.00024341,2]
[361090684,1747248633160,-400.0,0.00024341,2]
[361090686,1747248633169,-400.0,0.00024342,2]
[361090688,1747248633179,-459.12,0.00024346,2]
[361090690,1747248633189,-205.42370384,0.00024364,11]
[361090692,1747248633198,-400.0,0.00024615,2]
[361090694,1747248633207,-400.0,0.00024615,2]
[361090696,1747248633217,-400.0,0.00024616,2]
[361090698,1747248633226,-459.12,0.0002462,2]
[361090700,1747248633236,-300.0,0.00024658,2]
[361090702,1747248633246,-205.42370384,0.00024757,11]
[361090705,1747248633256,-343.96,0.00024889,2]
[361090707,1747248633266,-400.0,0.00024889,2]
[361090708,1747248633275,-546.1,0.0002489,3]
[361090710,1747248633285,-273.05,0.0002489,3]
[361090712,1747248633295,-819.19,0.0002489,3]
[361090714,1747248633305,-459.12,0.00024894,2]
[361090716,1747248633314,-160.0,0.00024899,3]
[361090718,1747248633323,-422.27619506,0.00024899,3]
[361090720,1747248633333,-997.9747837,0.00024899,3]
[361090722,1747248633342,-314.30604044,0.00024899,3]
[361090724,1747248633351,-9507.35964764,0.00024899,3]
[361090726,1747248633360,-94324.30116461,0.000249,2]
[361090728,1747248633370,-131362.80412092,0.000249,2]
[361090731,1747248633386,-3687.60221849,0.000249,2]
[361090733,1747248633397,-2662.56199191,0.000249,2]
[361091136,1747248638472,-601.83531115,0.00019997,2]
[361091138,1747248638481,-187.21441397,0.00019997,2]
[361091140,1747248638490,-291.74411362,0.00019997,2]
[361091142,1747248638501,-468.16309013,0.00019997,2]
[361091143,1747248638510,-500.0,0.00023518,2]
[361091145,1747248638520,-5315.27146073,0.000249,2]
[361091147,1747248638532,-4903.39999999,0.000249,2]
[361091468,1747248643552,-3100.0,0.000249,2]
[361091661,1747248646720,-1317.52103089,0.000249,2]
[361091764,1747249583826,188.882982,0.00013699,2]
[361091765,1747249613514,755.077124,0.00027397,120]
[361091776,1747249832618,-154.0,0.00016438,3]
[361091777,1747249832627,-188.882982,0.00020187,2]
[361091778,1747249832636,-150.0,0.00021918,2]
[361091779,1747249832645,-2117.72759001,0.00022,2]
[361091780,1747249832654,-24900.0,0.00022391,2]
[361091781,1747249832664,-181.043,0.00023301,3]
[361091782,1747249832673,-400.0,0.00023432,2]
[361091783,1747249832683,-335.5,0.00023432,2]
[361091784,1747249832692,-160.0,0.00023525,2]
[361091785,1747249832701,-422.27619506,0.00023525,2]
[361091786,1747249832711,-400.0,0.00023706,2]
[361091787,1747249832720,-150.0,0.00023734,2]
[361091788,1747249832729,-997.9747837,0.00023848,2]
[361091789,1747249832738,-400.0,0.0002398,2]
[361091790,1747249832747,-400.0,0.00024254,2]
[361091791,1747249832757,-400.0,0.00024528,2]
[361091793,1747249832766,-300.0,0.00024658,2]
[361091794,1747249832776,-400.0,0.00024802,2]
[361091797,1747249832787,-1800.21,0.000249,7]
[361091799,1747249832796,-2008.59,0.000249,30]
[361091800,1747249832805,-205.42370384,0.000249,12]
[361091802,1747249832814,-151.0,0.00024904,2]
[361091805,1747249832824,-400.0,0.00025076,2]
[361091806,1747249832833,-213.6678568,0.00025123,2]
[361091808,1747249832842,-205.42370384,0.00025329,12]
[361091810,1747249832851,-400.0,0.0002535,2]
[361091812,1747249832860,-400.0,0.00025624,2]
[361091814,1747249832869,-205.42370384,0.00025757,13]
[361091816,1747249832878,-400.0,0.00025898,2]
[361091818,1747249832888,-2000.0,0.00026,2]
[361091820,1747249832897,-1697.8100012,0.00026,4]
[361091821,1747249832907,-1283.3945188,0.00026033,4]
[361091822,1747249832916,-400.0,0.00026172,2]
[361091824,1747249832926,-205.42370384,0.00026186,14]
[361091826,1747249832935,-273.05,0.00026195,3]
[361091828,1747249832944,-819.15,0.00026195,3]
[361091830,1747249832954,-500.0,0.00026199,2]
[361091831,1747249832963,-500.0,0.00026199,2]
[361091832,1747249832971,-348.18176799,0.00026199,2]
[361091851,1747249833143,-284.93370597,0.00026199,2]
[361091853,1747249833153,-337.72665224,0.00026199,2]
[361091855,1747249833163,-392.49473537,0.000262,2]
[361091857,1747249833176,-1651.50526463,0.000262,2]
[361091859,1747249833186,-2044.0,0.000262,2]
[361091861,1747249833196,-2044.0,0.000262,2]
[361091863,1747249833206,-2044.0,0.000262,2]
[361091865,1747249833215,-2044.0,0.000262,2]
[361091867,1747249833226,-2044.0,0.000262,2]
[361091869,1747249833236,-2044.0,0.000262,2]
[361091871,1747249833246,-2044.0,0.000262,2]
[361091873,1747249833256,-2044.0,0.000262,2]
[361091875,1747249833266,-2044.0,0.000262,2]
[361091877,1747249833275,-235956.570308,0.00026215,2]
[361091879,1747249833286,-263.939858,0.00026215,7]
[361091881,1747249833296,-151.0,0.00026215,7]
[361091883,1747249833309,-226.551329,0.00026215,7]
[361091885,1747249833319,-226.551329,0.00026215,7]
[361091887,1747249833328,-226.551329,0.00026215,7]
[361091889,1747249833338,-226.551329,0.00026215,7]
[361091891,1747249833347,-151.0,0.00026215,7]
[361091893,1747249833358,-151.0,0.00026215,7]
[361091895,1747249833368,-47162.15058231,0.00026225,2]
[361091897,1747249833378,-4753.67982382,0.00026225,3]
[361091899,1747249833387,-1594.759732,0.00026225,2]
[361091901,1747249833397,-1594.759732,0.00026225,2]
[361091903,1747249833406,-1594.759732,0.00026225,2]
[361091905,1747249833415,-1594.759732,0.00026225,2]
[361091907,1747249833424,-151.0,0.00026225,7]
[361091909,1747249833434,-151.0,0.00026225,7]
[361091911,1747249833444,-151.0,0.00026225,7]
[361091913,1747249833453,-151.0,0.00026225,7]
[361091915,1747249833462,-77406.51634266,0.00026225,2]
[361091927,1747249833568,-570.33204626,0.00026225,2]
[361092435,1747249838540,-151.0,0.00026225,7]
[361092437,1747249838550,-151.0,0.00026225,7]
[361092439,1747249838559,-26452.46293733,0.00026225,2]
[361092443,1747249838594,-269.63709281,0.00026225,2]
[361092530,1747249840910,-1010.6,0.00026225,2]
[361092733,1747249843793,-4206.8744175,0.00026225,2]
[361092999,1747249846740,-13141.00000002,0.00026225,2]
[361093103,1747250662979,566.307843,0.00027397,120]
[361093104,1747250676257,169.994683,0.00013699,2]
[361093135,1747251037686,-169.994683,0.00020187,2]
[361093136,1747251037697,-200.339017,0.00023332,2]
[361093137,1747251037706,-497.046051,0.0002377,2]
[361093138,1747251037793,-500.9287327,0.0002377,2]
[361093140,1747251037804,-160.0,0.0002377,2]
[361093141,1747251037813,-422.27619506,0.00023782,2]
[361093142,1747251037824,-300.0,0.00024658,2]
[361093143,1747251037833,-39.87128725,0.00026033,4]
[361093144,1747251037845,-294.78529435,0.00026033,4]
[361093719,1747251046031,-520.9397642,0.00026033,4]
[361093721,1747251046040,-2000.0,0.000262,2]
[361093723,1747251046049,-732.0,0.000262,2]
[361093725,1747251046059,-732.0,0.000262,2]
[361093727,1747251046068,-732.0,0.000262,2]
[361093729,1747251046077,-732.0,0.000262,2]
[361093731,1747251046086,-732.0,0.000262,2]
[361093733,1747251046096,-732.0,0.000262,2]
[361093752,1747251046266,-732.0,0.000262,2]
[361093754,1747251046276,-732.0,0.000262,2]
[361093756,1747251046286,-732.0,0.000262,2]
[361093758,1747251046295,-732.0,0.000262,2]
[361093760,1747251046309,-151.0,0.00026225,7]
[361093762,1747251046318,-500.0,0.00026233,2]
[361093764,1747251046327,-500.0,0.00026233,2]
[361093766,1747251046336,-500.0,0.00026233,2]
[361093767,1747251046345,-500.0,0.00026233,2]
[361093770,1747251046355,-401.53728572,0.00026233,2]
[361093952,1747251698504,161.047594,0.00013699,2]
[361093953,1747251785944,424.730882,0.00027397,120]
[361093955,1747252074270,2154.0,0.0002753,120]
[361094305,1747252243031,-161.047594,0.00020548,2]